bitfinex-derivatives/quotes_BNBF0:USTF0_20250424
["timestamp","ask_amount","ask_price","bid_price","bid_amount"]
[1745487696292,0.204,597.19,595.75,0.29166859]
[1745487696488,0.204,597.19,595.76,0.30797709]
[1745487696693,0.204,597.19,595.77,0.30797709]
[1745487696988,0.204,597.19,595.78,0.30797709]
[1745487697190,0.204,597.19,595.79,0.30797709]
[1745487697394,0.204,597.19,595.8,0.30797709]
[1745487697593,0.204,597.19,595.81,0.30797709]
[1745487697792,0.204,597.19,595.82,0.30797709]
[1745487697994,0.204,597.19,595.83,0.30797696]
[1745487698189,0.204,597.19,595.84,0.30797696]
[1745487698493,0.204,597.19,595.85,0.30797696]
[1745487698691,0.204,597.19,595.86,0.30797696]
[1745487698887,0.204,597.19,595.87,0.30797696]
[1745487699193,0.204,597.19,595.88,0.30797696]
[1745487699490,0.204,597.19,595.79,0.29167225]
[1745487699694,0.204,597.19,595.8,0.30797751]
[1745487700194,0.204,597.19,595.81,0.30797751]
[1745487700495,0.204,597.19,595.82,0.30797751]
[1745487700695,0.204,597.19,595.77,0.30797751]
[1745487700896,0.204,597.19,595.78,0.30797751]
[1745487701197,0.204,597.19,595.79,0.30797751]
[1745487701494,0.204,597.19,595.8,0.30797751]
[1745487701694,0.204,597.19,595.81,0.30797751]
[1745487702691,0.204,597.19,595.82,0.30798487]
[1745487702896,0.204,597.19,595.81,0.30798487]
[1745487703093,0.204,597.19,595.82,0.30798487]
[1745487703298,0.204,597.19,595.81,0.30798487]
[1745487703599,0.204,597.19,595.82,0.30798487]
[1745487703796,0.204,597.19,595.74,0.30798487]
[1745487703995,0.204,597.19,595.83,0.30798487]
[1745487704196,0.204,597.19,595.73,1.06555623]
[1745487704498,0.204,597.19,595.75,1.06555623]
[1745487704695,0.204,597.19,595.76,0.30799323]
[1745487707099,0.204,597.19,595.77,0.30799295]
[1745487707300,0.204,597.19,595.76,0.30799295]
[1745487707502,0.204,597.19,595.75,1.3572456]
[1745487707701,0.204,597.19,595.76,0.30799247]
[1745487709103,0.204,597.19,595.75,1.3572456]
[1745487709302,0.204,597.19,595.76,0.30799355]
[1745487709505,0.204,597.19,595.77,0.30799355]
[1745487709703,0.204,597.19,595.78,1.06555623]
[1745487710002,0.204,597.19,595.79,0.30799355]
[1745487712208,0.204,597.19,595.78,1.06555623]
[1745487712405,0.204,597.19,595.79,0.307974]
[1745487712606,0.204,597.19,595.9,1.06555623]
[1745487712902,0.204,597.19,595.91,0.307974]
[1745487713806,0.204,597.19,595.9,1.06555623]
[1745487714006,0.204,597.19,595.91,0.30797424]
[1745487715703,0.204,597.19,595.97,1.06555623]
[1745487715905,0.204,597.19,595.98,0.30797424]
[1745487717010,0.204,597.19,595.97,1.06555623]
[1745487717212,0.204,597.19,595.98,0.30792677]
[1745487718511,0.204,597.19,595.99,0.30792677]
[1745487718710,0.204,597.19,595.9,0.30792677]
[1745487721316,0.204,597.19,595.91,0.30792677]
[1745487721510,0.204,597.19,595.92,0.30792677]
[1745487721712,0.204,597.19,595.87,0.30792677]
[1745487721916,0.204,597.19,595.88,0.30792677]
[1745487722117,0.204,597.19,595.87,0.30792677]
[1745487724420,0.204,597.19,595.69,1.06555623]
[1745487724613,0.204,597.19,595.7,0.30799284]
[1745487725719,0.204,597.19,595.71,0.29167225]
[1745487725919,0.204,597.19,595.72,0.30799284]
[1745487726114,0.204,597.19,595.73,0.30798984]
[1745487726314,0.204,597.19,595.72,0.30798984]
[1745487726512,0.204,597.19,595.71,0.29167225]
[1745487726513,0.204,597.19,595.73,0.30798984]
[1745487726718,0.204,597.19,595.72,0.30798984]
[1745487727413,0.204,597.19,595.73,0.30798984]
[1745487727618,0.204,597.19,595.7,1.06555623]
[1745487727815,0.204,597.19,595.71,0.30799338]
[1745487728523,0.204,597.19,595.71,0.5996693]
[1745487728721,0.204,597.19,595.72,0.30799338]
[1745487729225,0.204,597.19,595.71,0.29167592]
[1745487729421,0.204,597.19,595.72,0.307997]
[1745487730723,0.204,597.19,595.73,1.243997]
[1745487730920,0.204,597.19,595.74,0.307997]
[1745487732424,0.204,597.19,595.73,0.936]
[1745487732626,0.204,597.19,595.74,0.30798126]
[1745487733919,0.204,597.19,595.73,0.936]
[1745487734220,0.204,597.19,595.8,1.06555623]
[1745487734425,0.204,597.19,595.81,0.30797938]
[1745487735626,0.204,597.19,595.8,1.06555623]
[1745487735826,0.204,597.19,595.81,0.30797945]
[1745487736726,0.204,597.19,595.77,0.30797945]
[1745487736927,0.204,597.19,595.78,0.30797945]
[1745487737121,0.204,597.19,595.77,0.30797945]
[1745487739126,0.204,597.19,595.77,1.37353568]
[1745487739330,0.204,597.19,595.78,0.30797945]
[1745487740335,0.204,597.19,595.79,0.3079287]
[1745487740634,0.204,597.19,595.8,0.3079287]
[1745487740832,0.204,597.19,595.78,0.3079287]
[1745487741035,0.204,597.19,595.79,0.3079287]
[1745487741236,0.204,597.19,595.78,0.3079287]
[1745487741434,0.204,597.19,595.79,0.3079287]
[1745487741631,0.204,597.19,595.78,0.3079287]
[1745487741834,0.204,597.19,595.79,0.30793164]
[1745487742140,0.204,597.19,595.87,1.06555623]
[1745487742337,0.204,597.19,595.88,0.30793164]
[1745487743337,0.204,597.19,595.87,1.06555623]
[1745487743538,0.204,597.19,595.88,0.30791836]
[1745487744332,0.204,597.19,595.89,0.30791836]
[1745487744533,0.204,597.19,595.9,0.30791836]
[1745487744737,0.204,597.19,595.82,0.30791836]
[1745487744938,0.204,597.19,595.81,0.2916026]
[1745487745138,0.204,597.19,595.82,0.30791819]
[1745487745540,0.204,597.19,595.81,0.29153054]
[1745487745734,0.204,597.19,595.82,0.30791819]
[1745487748341,0.204,597.19,595.83,0.3079202]
[1745487748640,0.204,597.19,595.84,0.3079202]
[1745487748940,0.204,597.19,595.85,0.3079202]
[1745487749143,0.204,597.19,595.74,0.3079202]
[1745487749541,0.204,597.19,595.75,0.29152809]
[1745487749943,0.204,597.19,595.76,0.30792004]
[1745487751444,0.204,597.19,595.77,0.30792211]
[1745487751643,0.204,597.19,595.77,0.892]
[1745487751843,0.204,597.19,595.78,0.30792211]
[1745487753644,0.204,597.19,595.79,0.30792211]
[1745487753842,0.204,597.19,595.8,0.30792211]
[1745487754043,0.204,597.19,595.81,0.30792211]
[1745487754244,0.204,597.19,595.82,0.30792211]
[1745487754440,0.204,597.19,595.83,0.30792211]
[1745487754646,0.204,597.19,595.84,0.30792211]
[1745487754844,0.204,597.19,595.85,0.30792211]
[1745487755045,0.204,597.19,595.79,0.30792211]
[1745487755242,0.204,597.19,595.86,0.30792211]
[1745487755447,0.204,597.19,595.87,0.30792211]
[1745487755747,0.204,597.19,595.88,0.30792211]
[1745487755946,0.204,597.19,595.79,0.30792211]
[1745487756148,0.204,597.19,595.8,0.30792211]
[1745487756346,0.204,597.19,595.81,0.30792211]
[1745487756646,0.204,597.19,595.82,0.30792211]
[1745487756842,0.204,597.19,595.83,0.30792211]
[1745487757046,0.204,597.19,595.84,0.30792211]
[1745487757248,0.204,597.19,595.85,0.30792211]
[1745487757449,0.204,597.19,595.89,1.06555623]
[1745487757646,0.204,597.19,595.9,0.30792211]
[1745487759749,0.204,597.19,595.91,0.30792211]
[1745487760049,0.204,597.19,595.9,0.30792211]
[1745487760250,0.204,597.19,595.91,0.30792211]
[1745487760449,0.204,597.19,595.92,0.30792211]
[1745487760646,0.204,597.19,595.9,0.30792211]
[1745487760949,0.204,597.19,595.91,0.30792211]
[1745487761151,0.204,597.19,595.9,0.30792211]
[1745487763346,0.204,597.19,595.91,0.30792211]
[1745487763652,0.204,597.19,595.84,0.30792211]
[1745487763951,0.204,597.19,595.85,0.30792211]
[1745487764347,0.204,597.19,595.86,0.30792211]
[1745487764551,0.204,597.19,595.86,0.2916197]
[1745487764747,0.204,597.19,595.87,0.30792211]
[1745487765552,0.204,597.19,595.86,0.2916197]
[1745487765553,0.204,597.19,595.88,0.30795228]
[1745487765753,0.204,597.19,595.87,0.30795228]
[1745487765951,0.204,597.19,595.88,0.30795228]
[1745487766151,0.204,597.19,595.87,0.30795228]
[1745487766355,0.204,597.19,595.88,0.30795228]
[1745487766653,0.204,597.19,595.89,0.30795228]
[1745487766953,0.204,597.19,595.9,0.30795228]
[1745487767153,0.204,597.19,595.91,0.30795228]
[1745487767453,0.204,597.19,595.92,0.30795228]
[1745487767754,0.204,597.19,595.93,0.30795228]
[1745487767953,0.204,597.19,595.89,0.30795228]
[1745487768148,0.204,597.19,595.9,0.30795228]
[1745487768352,0.204,597.19,595.89,0.30795228]
[1745487768549,0.204,597.19,595.88,0.29161482]
[1745487768854,0.204,597.19,595.89,0.30795592]
[1745487769448,0.204,597.19,595.81,0.30795592]
[1745487769649,0.204,597.19,595.88,0.29161726]
[1745487769952,0.204,597.19,595.89,0.30795592]
[1745487770153,0.204,597.19,595.81,0.921]
[1745487770355,0.204,597.19,595.82,0.30795628]
[1745487770554,0.204,597.19,595.82,0.59958209]
[1745487770756,0.204,597.19,595.83,0.30795628]
[1745487771158,0.204,597.19,595.84,0.925]
[1745487771459,0.204,597.19,595.85,0.30795628]
[1745487771659,0.204,597.19,595.84,0.925]
[1745487771859,0.204,597.19,595.85,0.30794791]
[1745487774361,0.204,597.19,595.85,1.37350414]
[1745487774559,0.204,597.19,595.86,0.30794791]
[1745487776363,0.204,597.19,595.87,0.307935]
[1745487776563,0.204,597.19,595.88,0.307935]
[1745487776862,0.204,597.19,595.89,0.307935]
[1745487777063,0.204,597.19,595.91,1.06555623]
[1745487777257,0.204,597.19,595.92,0.307935]
[1745487777862,0.204,597.19,595.91,1.06555623]
[1745487778159,0.204,597.19,595.92,0.30792428]
[1745487782062,0.204,597.19,595.91,1.06555623]
[1745487782268,0.204,597.19,595.92,0.30791901]
[1745487782469,0.204,597.19,595.91,0.30791901]
[1745487782668,0.204,597.19,595.92,0.30791901]
[1745487782862,0.204,597.19,595.91,0.30791901]
[1745487783067,0.204,597.19,595.92,0.30791901]
[1745487783265,0.204,597.19,595.91,0.30791901]
[1745487784170,0.19104536,597.19,595.91,0.30791901]
[1745487784372,0.29156107,597.59,595.91,0.30791901]
[1745487786869,0.29156107,597.59,595.91,1.34691901]
[1745487787069,0.29156107,597.59,595.92,0.30791901]
[1745487787272,1.27462458,597.82,595.92,0.30791901]
[1745487787766,0.29155985,597.59,595.92,0.30791901]
[1745487787972,1.27462458,597.82,595.92,0.30791901]
[1745487788168,1.27462458,598.37,595.92,0.30791901]
[1745487788672,0.29150978,598.36,595.92,0.30791901]
[1745487789572,0.191,598.35,595.92,0.30791901]
[1745487789973,0.191,598.35,595.93,0.3078376]
[1745487790168,0.191,598.35,595.94,0.3078376]
[1745487790372,0.191,598.35,595.92,0.3078376]
[1745487790570,0.191,598.35,595.95,0.838]
[1745487791574,0.29147193,598.34,595.96,0.30780204]
[1745487793279,0.191,598.35,595.96,0.30780204]
[1745487793880,0.191,598.35,595.95,0.838]
[1745487794479,0.191,598.35,595.96,0.30780277]
[1745487794774,0.2913731,598.34,595.97,0.30780277]
[1745487794979,0.2913731,598.34,595.96,0.30780277]
[1745487795178,0.2913731,598.34,595.95,0.838]
[1745487795179,0.2913731,598.34,595.97,0.30780277]
[1745487795475,0.2913731,598.34,595.96,0.30780277]
[1745487795674,0.2913731,598.34,595.98,0.30780277]
[1745487795875,0.2913731,598.34,595.97,0.30780277]
[1745487796077,0.2913731,598.34,595.99,0.30780277]
[1745487796274,0.191,598.35,595.98,0.30780277]
[1745487796577,0.191,598.35,595.99,0.30780277]
[1745487796774,0.191,598.35,595.95,0.838]
[1745487796775,0.191,598.35,596.0,0.30780277]
[1745487796978,0.191,598.35,595.96,0.30780277]
[1745487797278,0.191,598.35,595.97,0.30780277]
[1745487797479,0.191,598.35,595.96,0.30780277]
[1745487797781,0.29139261,598.34,595.95,1.12939261]
[1745487797975,0.29139261,598.34,595.97,0.30779188]
[1745487798174,0.29139261,598.34,595.98,0.30779188]
[1745487798380,0.29139261,598.34,595.96,0.30779188]
[1745487798675,0.29139261,598.34,595.97,0.30779188]
[1745487798878,0.29139261,598.34,595.95,1.12939261]
[1745487798879,0.29139261,598.34,595.98,0.30779188]
[1745487799077,0.29139261,598.34,595.99,0.30779188]
[1745487799381,0.191,598.35,595.95,0.838]
[1745487799580,0.191,598.35,595.96,0.30777863]
[1745487800678,0.29139505,598.34,595.96,0.30777863]
[1745487800976,0.29139505,598.34,595.97,0.706]
[1745487801175,0.29139505,598.34,595.98,0.30777863]
[1745487802376,0.191,598.35,595.98,0.30777863]
[1745487802576,1.27462458,598.92,595.97,0.706]
[1745487802776,1.27462458,598.92,595.98,0.30776087]
[1745487803583,0.29138651,598.91,595.98,0.30776087]
[1745487805285,1.27462458,598.99,595.98,0.30776087]
[1745487805485,0.191,598.9,595.98,0.30776087]
[1745487805783,0.48238163,598.9,595.98,0.30776087]
[1745487806087,0.48238163,598.9,595.99,0.30776087]
[1745487806280,0.48238163,598.9,596.0,0.30776087]
[1745487806480,0.48238163,598.9,596.01,0.30776087]
[1745487806685,0.48238163,598.9,595.98,0.30776087]
[1745487806985,0.48238163,598.9,595.99,0.30776087]
[1745487807185,0.48238163,598.9,596.0,0.30776087]
[1745487807381,0.48238163,598.9,596.01,0.30776087]
[1745487807584,0.48238163,598.9,596.02,0.30776087]
[1745487807785,0.48238163,598.9,596.03,0.30776087]
[1745487807986,0.48238163,598.9,595.97,0.99738163]
[1745487807987,1.27462458,598.34,595.98,0.30776087]
[1745487808181,1.27462458,598.34,595.99,0.30776087]
[1745487808385,1.27462458,598.34,596.0,0.30776087]
[1745487808584,1.27462458,598.34,596.01,0.30776087]
[1745487808886,0.2914524,598.33,596.02,0.30776087]
[1745487809087,0.2914524,598.33,595.98,0.2914524]
[1745487809283,0.2914524,598.33,595.99,0.30775859]
[1745487809480,0.2914524,598.33,596.0,0.30775859]
[1745487809686,0.2914524,598.33,596.01,0.30775859]
[1745487809887,0.2914524,598.33,595.99,0.30775859]
[1745487810186,0.2914524,598.33,596.02,0.881]
[1745487810388,0.2914524,598.33,596.03,0.30775859]
[1745487811293,1.27462458,598.34,596.03,0.30775859]
[1745487812596,0.2914463,598.33,596.03,0.30775859]
[1745487814298,1.27462458,598.34,596.03,0.30775859]
[1745487815499,1.27462458,598.34,596.02,0.881]
[1745487815798,0.29144386,598.33,596.03,0.30774404]
[1745487817094,0.29144386,598.33,596.02,1.94655623]
[1745487817298,1.27462458,598.41,596.03,0.30774305]
[1745487817598,1.27462458,598.41,596.03,1.04574305]
[1745487817794,1.27462458,598.41,596.04,0.30774305]
[1745487817993,1.27462458,598.39,596.05,1.06555623]
[1745487818196,1.27462458,598.39,596.06,0.30774305]
[1745487818600,0.2914341,598.38,596.06,0.30774305]
[1745487819801,0.2914341,598.38,596.07,0.30774305]
[1745487819994,0.2914341,598.38,596.08,0.30774305]
[1745487820198,0.2914341,598.38,596.09,0.30774305]
[1745487820396,0.2914341,598.38,596.05,1.06555623]
[1745487820397,1.27462458,598.39,596.1,0.30774315]
[1745487820597,1.27462458,598.36,596.1,1.06555623]
[1745487820801,1.27462458,598.36,596.11,0.30774315]
[1745487821605,0.29145362,598.35,596.11,0.30774315]
[1745487821903,0.29145362,598.35,596.1,1.06555623]
[1745487822103,0.29145362,598.35,596.12,0.30778236]
[1745487822399,0.29145362,598.35,596.13,0.30778236]
[1745487822603,0.29145362,598.35,596.14,0.30778236]
[1745487822796,0.29145362,598.35,596.15,0.30778236]
[1745487823003,0.29145362,598.35,596.11,0.30778236]
[1745487823204,0.29145362,598.35,596.12,0.30778236]
[1745487823499,1.27462458,598.51,596.13,0.30778236]
[1745487823698,1.27462458,598.51,596.04,0.30778236]
[1745487823903,1.27462458,598.51,596.05,0.30778236]
[1745487824103,1.27462458,598.51,596.04,0.30778236]
[1745487824302,1.27462458,598.51,596.05,0.30778236]
[1745487824504,0.29144386,598.5,596.04,0.30778236]
[1745487824699,0.29144386,598.5,596.05,0.59922622]
[1745487824901,0.29144386,598.5,596.06,0.30778236]
[1745487826303,1.27462458,598.51,596.06,0.30778236]
[1745487826499,1.27462458,598.51,596.04,0.30778236]
[1745487827006,1.27462458,598.44,596.04,0.30778236]
[1745487827602,0.29144752,598.43,596.05,0.29144752]
[1745487827801,0.29144752,598.43,596.06,0.30778236]
[1745487828310,0.29144752,598.43,596.05,0.29144752]
[1745487828506,0.29144752,598.43,596.06,0.30778783]
[1745487828802,0.29144752,598.43,596.07,0.30778783]
[1745487829005,0.29144752,598.43,596.06,0.30778783]
[1745487829207,1.27462458,598.15,596.1,1.06555623]
[1745487829507,1.27462458,598.15,596.11,0.30778783]
[1745487829806,1.27462458,598.15,596.1,1.06555623]
[1745487830002,1.27462458,598.15,596.11,0.30779428]
[1745487830602,0.29147926,598.14,596.11,0.30779428]
[1745487831107,0.29147926,598.14,596.12,0.681]
[1745487831406,0.29147926,598.14,596.13,0.30779428]
[1745487831607,0.29147926,598.14,596.14,0.30779235]
[1745487831802,0.29147926,598.14,596.13,0.30779235]
[1745487832002,0.29147926,598.14,596.14,0.30779235]
[1745487832306,1.27462458,598.15,596.12,0.681]
[1745487833207,1.27462458,598.15,596.13,0.30779265]
[1745487833507,1.27462458,598.01,596.15,1.06555623]
[1745487833701,1.27462458,598.01,596.16,0.30779265]
[1745487834602,1.27462458,598.01,596.15,1.06555623]
[1745487834807,0.191,598.0,596.16,0.30779233]
[1745487836711,0.29149513,597.99,596.15,0.30779233]
[1745487838307,0.191,598.0,596.15,0.30779233]
[1745487838811,0.191,598.0,596.15,1.38979233]
[1745487839008,0.191,598.0,596.16,0.30779233]
[1745487839705,0.29149757,597.99,596.16,0.30779233]
[1745487840914,0.29149757,597.99,596.15,1.082]
[1745487841106,0.29149757,597.99,596.16,0.30779566]
[1745487843713,0.29149757,597.99,596.15,1.082]
[1745487843912,0.29149757,597.99,596.16,0.30779173]
[1745487844312,0.191,598.0,596.16,0.30779173]
[1745487845712,0.29141335,597.99,596.16,0.30779173]
[1745487847315,0.191,598.0,596.16,0.30779173]
[1745487847616,0.2914158,597.98,596.16,0.30779173]
[1745487848515,0.2914158,597.98,596.16,1.24579173]
[1745487848716,0.2914158,597.98,596.17,0.30779173]
[1745487850311,0.191,598.0,596.17,0.30779173]
[1745487851719,0.29140481,597.99,596.16,1.22940481]
[1745487851913,0.29140481,597.99,596.17,1.04378231]
[1745487852114,0.29140481,597.99,596.18,0.30778231]
[1745487853314,0.191,598.0,596.18,0.30778231]
[1745487854627,0.29140359,597.99,596.18,0.30778231]
[1745487854922,0.29140359,597.99,596.17,1.02740359]
[1745487855125,0.29140359,597.99,596.18,0.30777425]
[1745487856327,0.191,598.0,596.18,0.30777425]
[1745487857628,0.29140725,597.99,596.18,0.30777425]
[1745487858030,1.56603183,597.99,596.24,1.06555623]
[1745487858231,1.56603183,597.99,596.25,0.30777425]
[1745487859329,1.27462458,597.99,596.25,0.30777425]
[1745487859732,1.27462458,597.99,596.24,1.06555623]
[1745487859931,1.27462458,597.99,596.25,0.3077735]
[1745487860333,0.191,598.0,596.25,0.3077735]
[1745487860735,0.2914817,597.98,596.25,0.3077735]
[1745487862337,1.27462458,598.01,596.25,0.3077735]
[1745487862639,0.29147926,597.97,596.25,0.3077735]
[1745487863636,0.29147926,597.97,596.24,0.3077735]
[1745487864040,0.191,597.96,596.24,0.3077735]
[1745487865337,0.191,597.96,596.23,1.06555623]
[1745487865535,0.191,597.96,596.24,0.3077683]
[1745487865945,0.191,597.96,596.25,1.06555623]
[1745487866139,0.191,597.96,596.26,0.3077683]
[1745487866336,0.191,597.96,596.27,0.3077683]
[1745487866641,0.191,597.96,596.28,0.3077683]
[1745487866842,0.29148292,597.95,596.27,1.008]
[1745487867146,0.29148292,597.95,596.28,0.3077683]
[1745487869044,1.27462458,597.9,596.3,1.06555623]
[1745487869243,1.27462458,597.9,596.31,0.3077683]
[1745487871045,1.27462458,597.9,596.3,1.06555623]
[1745487871245,1.27462458,597.9,596.31,0.30779617]
[1745487871646,1.27462458,597.9,596.36,1.06555623]
[1745487872646,0.29149269,597.89,596.36,1.06555623]
[1745487873841,0.29149269,597.89,596.37,0.68]
[1745487874446,0.191,597.96,596.37,0.68]
[1745487875650,0.29143654,597.95,596.37,0.68]
[1745487877347,0.191,597.96,596.37,0.68]
[1745487877552,0.191,597.96,596.38,0.967]
[1745487877854,0.29138651,597.94,596.38,0.967]
[1745487878153,0.29138651,597.94,596.39,0.893]
[1745487883357,0.191,597.96,596.39,0.893]
[1745487884754,0.29139627,597.95,596.39,0.893]
[1745487885058,0.29139627,597.95,596.4,0.30777264]
[1745487886358,0.191,597.96,596.4,0.30777264]
[1745487886758,0.191,597.96,596.39,0.893]
[1745487886959,0.191,597.96,596.4,0.30776782]
[1745487887662,0.29139627,597.95,596.4,0.30776782]
[1745487889367,0.191,597.96,596.4,0.30776782]
[1745487889865,0.191,597.96,596.39,0.893]
[1745487890061,0.191,597.96,596.41,0.30776847]
[1745487890266,0.191,597.96,596.42,0.30776847]
[1745487890565,0.191,597.96,596.43,0.30776847]
[1745487890767,0.29144142,597.95,596.4,0.30776847]
[1745487891066,0.29144142,597.95,596.41,0.30776847]
[1745487891367,0.29144142,597.95,596.42,0.30776847]
[1745487891568,0.29144142,597.95,596.43,0.30776403]
[1745487891767,0.29144142,597.95,596.42,0.813]
[1745487892067,0.29144142,597.95,596.43,0.30776403]
[1745487892367,1.27462458,598.13,596.43,0.30776403]
[1745487892769,0.29144264,597.94,596.42,0.813]
[1745487892970,1.27462458,598.13,596.43,0.30776865]
[1745487893172,1.27462458,598.11,596.44,0.30776865]
[1745487893470,1.27462458,598.11,596.43,0.30776865]
[1745487893710,1.27462458,598.11,596.42,0.813]
[1745487893711,1.27462458,598.11,596.44,0.30776865]
[1745487893971,0.29144508,598.1,596.45,0.30776865]
[1745487894170,0.29144508,598.1,596.46,0.30776865]
[1745487894471,0.192,598.09,596.47,0.30776865]
[1745487894664,0.192,598.09,596.42,0.813]
[1745487894869,0.192,598.09,596.43,0.3077562]
[1745487895572,1.46662458,598.09,596.43,0.3077562]
[1745487896169,1.46662458,598.09,596.42,0.813]
[1745487896369,1.46662458,598.09,596.43,0.30775021]
[1745487896669,0.29143776,598.08,596.43,0.30775021]
[1745487897869,1.27462458,597.99,596.43,0.30775021]
[1745487898675,1.27462458,597.99,596.43,1.29475021]
[1745487898973,1.27462458,597.99,596.44,0.30775021]
[1745487899373,1.27462458,597.99,596.43,0.987]
[1745487899573,1.27462458,597.99,596.45,0.30774287]
[1745487899772,0.29144874,597.98,596.46,0.30774287]
[1745487899968,0.29144874,597.98,596.44,0.30774287]
[1745487900269,0.29144874,597.98,596.45,0.30774287]
[1745487900473,0.29144874,597.98,596.44,0.30774287]
[1745487901375,0.192,598.09,596.44,0.30774287]
[1745487902578,0.29143776,598.08,596.44,0.30774287]
[1745487903573,0.29143776,598.08,596.43,0.987]
[1745487903778,0.29143776,598.08,596.44,0.30776674]
[1745487904382,0.192,598.09,596.44,0.30776674]
[1745487905177,0.192,598.09,596.43,0.987]
[1745487905377,0.192,598.09,596.44,0.30776935]
[1745487905579,0.2914402,598.08,596.44,0.30776935]
[1745487906182,1.27462458,598.05,596.44,0.30776935]
[1745487906781,1.27462458,598.05,596.43,0.987]
[1745487906977,1.27462458,598.05,596.44,0.3077716]
[1745487908379,1.27462458,598.02,596.43,0.987]
[1745487908583,1.27462458,598.02,596.44,0.30777169]
[1745487910984,1.27462458,597.97,596.44,0.30777169]
[1745487911679,0.29146339,597.96,596.44,0.30777169]
[1745487913088,0.29146339,597.96,596.43,0.987]
[1745487913289,1.27462458,597.89,596.44,0.30777301]
[1745487913883,0.29147315,597.88,596.44,0.30777301]
[1745487915190,1.27462458,597.87,596.44,0.30777301]
[1745487916194,1.27462458,597.87,596.43,0.987]
[1745487916393,1.27462458,597.87,596.44,0.30777049]
[1745487917690,0.2914756,597.86,596.44,0.30777049]
[1745487917895,0.2914756,597.86,596.45,0.30777356]
[1745487918195,0.2914756,597.86,596.45,0.755]
[1745487918390,0.2914756,597.86,596.46,0.30777356]
[1745487919396,1.27462458,597.9,596.45,0.755]
[1745487919695,1.27462458,597.9,596.46,0.30777296]
[1745487920095,1.27462458,597.9,596.47,0.745]
[1745487920296,1.27462458,597.9,596.48,0.30777296]
[1745487920495,1.27462458,597.93,596.48,0.30777296]
[1745487920696,0.29146705,597.89,596.48,0.30777296]
[1745487920996,0.29146705,597.89,596.47,0.745]
[1745487921196,0.29146705,597.89,596.48,0.30777398]
[1745487922293,0.29146705,597.89,596.47,0.745]
[1745487922498,1.27462458,597.93,596.47,0.745]
[1745487922998,1.27462458,597.93,596.45,0.755]
[1745487923199,1.27462458,597.91,596.45,0.755]
[1745487926305,0.29148536,597.92,596.45,0.755]
[1745487931410,1.27462458,597.91,596.45,0.755]
[1745487934012,0.29148536,597.92,596.45,0.755]
[1745487935212,0.29148536,597.92,596.2,0.29141946]
[1745487935614,0.29148536,597.92,596.21,0.30788494]
[1745487936914,0.29148536,597.92,596.2,0.29141946]
[1745487937112,0.29148536,597.92,596.21,0.30785968]
[1745487937308,1.27462458,597.95,596.21,0.30785968]
[1745487937507,1.27462458,597.95,595.97,0.30785968]
[1745487937812,1.27462458,597.95,595.96,1.065]
[1745487937813,1.27462458,597.95,595.98,0.30785968]
[1745487938013,1.27462458,597.95,595.97,0.30785968]
[1745487938314,1.27462458,597.95,595.98,0.30785968]
[1745487938613,0.29156717,597.94,595.98,0.29156717]
[1745487938913,0.29156717,597.94,595.99,0.30785968]
[1745487939310,0.29156717,597.94,595.99,1.06985968]
[1745487939514,0.29156717,597.94,596.0,0.30785968]
[1745487940310,1.27462458,597.99,596.0,0.30785968]
[1745487941617,0.29155862,597.98,595.99,1.05355862]
[1745487941819,0.29155862,597.98,596.0,0.30785762]
[1745487943411,1.27462458,598.05,596.0,0.30785762]
[1745487943616,0.2915513,597.97,596.0,0.30785762]
[1745487943917,1.27462458,598.05,596.0,0.30785762]
[1745487944315,1.27462458,598.04,596.0,0.30785762]
[1745487944713,1.56617588,598.04,595.99,1.0535513]
[1745487944918,1.56617588,598.04,596.0,0.30786678]
[1745487946320,1.56617588,598.04,596.01,0.683]
[1745487946521,1.27462458,597.99,596.02,0.30786865]
[1745487947721,0.29155618,597.98,596.02,0.30786865]
[1745487947921,0.29155618,597.98,596.01,0.683]
[1745487948221,0.29155618,597.98,596.02,0.30786953]
[1745487949423,1.27462458,597.93,596.02,0.30786953]
[1745487949815,1.27462458,597.93,596.01,0.97455618]
[1745487950020,1.27462458,597.93,596.02,0.30786951]
[1745487950622,0.29156351,597.92,596.02,0.30786951]